[Event "Marshall CC U2400 October 2024"]
[Site "New York"]
[Date "2024.10.19"]
[Round "1.1"]
[White "Sarkar, Justin"]
[Black "Zhao, Austin"]
[Result "1-0"]
[ECO "D31"]
[WhiteElo "2275"]
[BlackElo "1756"]
[Annotator "RC"]
[PlyCount "75"]
[EventDate "2024.04.20"]
[EventType "swiss"]
[EventCountry "USA"]
[SourceTitle "playchess.com"]
[Source "ChessBase"]
[SourceQuality "1"]
[TimeControl "5400+30"]

1. d4 {[%emt 0:03:08]} d5 {[%emt 0:00:11]} 2. c4 {[%emt 0:00:10]} e6 {[%emt 0:00:04]} 3. Nc3 {[%emt 0:00:57]} c6 {[%emt 0:00:09]} 4. Nf3 {[%emt 0:07:49]} dxc4 {[%emt 0:00:35]} 5. a4 {[%emt 0:00:05]} Bb4 {[%emt 0:00:16]} 6. e3 {[%emt 0:00:08]} b5 {[%emt 0:00:08]} 7. Bd2 {[%emt 0:00:04]} a5 {[%emt 0:00:27]} 8. axb5 {[%emt 0:00:14]} Bxc3 {[%emt 0:00:04]} 9. Bxc3 {[%emt 0:00:05]} cxb5 {[%emt 0:00:08]} 10. b3 {[%emt 0:00:11]} Bb7 {[%emt 0:00:08]} 11. Bb2 {[%emt 0:01:50]} Nf6 {[%emt 0:01:05]} 12. bxc4 {[%emt 0:00:04]} b4 {[%emt 0:00:17]} 13. Bd3 {[%emt 0:00:45]} O-O {[%emt 0:00:34]} 14. O-O {[%emt 0:00:49]} Nbd7 {[%emt 0:01:16]} 15. Nd2 {[%emt 0:00:12]} Nc5 {[%emt 0:09:29]} 16. Bc2 {[%emt 0:00:09]} Nce4 {[%emt 0:00:49]} 17. Nxe4 {[%emt 0:21:08]} Bxe4 {[%emt 0:01:34]} 18. Ba4 {[%emt 0:00:07]} Qc7 {[%emt 0:03:28]} 19. d5 {[%emt 0:03:50]} Bf5 {[%emt 0:16:57]} 20. Bc6 {[%emt 0:17:58]} Ra6 {[%emt 0:03:21]} 21. Bb5 {[%emt 0:02:28]} Raa8 {[%emt 0:01:52]} 22. d6 {[%emt 0:03:31]} Qb6 {[%emt 0:01:44]} 23. Qd4 {[%emt 0:06:04]} Rfb8 {[%emt 0:03:40]} 24. Qxb6 {[%emt 0:10:08]} Rxb6 {[%emt 0:00:03]} 25. Rfd1 {[%emt 0:00:05]} Rxb5 {[%emt 0:17:18]} 26. cxb5 {[%emt 0:01:34]} Nd7 {[%emt 0:00:07]} 27. e4 {[%emt 0:00:31]} Bxe4 {[%emt 0:01:26]} 28. Rdc1 {[%emt 0:00:12]} Kf8 {[%emt 0:00:56]} 29. Rxa5 {[%emt 0:00:37]} Rd8 {[%emt 0:01:24]} 30. Ra7 {[%emt 0:06:19]} f6 {[%emt 0:03:59]} 31. Rcc7 {[%emt 0:02:06]} Ne5 {[%emt 0:01:07]} 32. f3 {[%emt 0:02:17]} Bg6 {[%emt 0:00:24]} 33. b6 {[%emt 0:02:02]} Be8 {[%emt 0:03:00]} 34. Bxe5 {[%emt 0:03:32]} fxe5 {[%emt 0:00:14]} 35. d7 {[%emt 0:00:04]} Bg6 {[%emt 0:00:38]} 36. Rc8 {[%emt 0:00:18]} Ke7 {[%emt 0:01:57]} 37. Rxd8 {[%emt 0:00:05]} Kxd8 {[%emt 0:00:11]} 38. b7 {[%emt 0:00:06]} 1-0

[Event "Marshall CC U2400 October 2024"]
[Site "New York"]
[Date "2024.10.19"]
[Round "1.2"]
[White "Malhotra, Rishan"]
[Black "Paragua, Megan Althea"]
[Result "0-1"]
[ECO "D59"]
[WhiteElo "1718"]
[BlackElo "2190"]
[Annotator "RC"]
[PlyCount "90"]
[EventDate "2024.04.20"]
[EventType "swiss"]
[EventCountry "USA"]
[SourceTitle "playchess.com"]
[Source "ChessBase"]
[SourceQuality "1"]
[TimeControl "5400+30"]

1. Nf3 {[%emt 0:00:01]} Nf6 {[%emt 0:00:07]} 2. d4 {[%emt 0:00:04]} e6 {[%emt 0:00:09]} 3. c4 {[%emt 0:00:04]} d5 {[%emt 0:00:02]} 4. Nc3 {[%emt 0:00:05]} Be7 {[%emt 0:00:05]} 5. Bg5 {[%emt 0:00:04]} O-O {[%emt 0:00:06]} 6. e3 {[%emt 0:00:11]} h6 {[%emt 0:00:14]} 7. Bh4 {[%emt 0:00:08]} b6 {[%emt 0:00:12]} 8. cxd5 {[%emt 0:00:05]} Nxd5 {[%emt 0:00:06]} 9. Bg3 {[%emt 0:00:46]} Bb7 {[%emt 0:00:24]} 10. Bd3 {[%emt 0:00:37]} c5 {[%emt 0:00:39]} 11. O-O {[%emt 0:00:57]} Nc6 {[%emt 0:01:31]} 12. Rc1 {[%emt 0:03:30]} cxd4 {[%emt 1:32:55]} 13. exd4 {[%emt 0:01:03]} Nxc3 {[%emt 0:00:00]} 14. bxc3 {[%emt 0:00:53]} Qd5 {[%emt 0:00:00]} 15. c4 {[%emt 0:03:24]} Qh5 {[%emt 0:00:00]} 16. d5 {[%emt 0:04:27]} Nb4 {[%emt 0:00:00]} 17. d6 {[%emt 0:06:06]} Bf6 {[%emt 0:00:00]} 18. Be2 {[%emt 0:03:32]} Qa5 {[%emt 0:00:00]} 19. Qb3 {[%emt 0:08:03]} Bc6 {[%emt 0:00:00]} 20. a3 {[%emt 0:01:48]} Na6 {[%emt 0:00:00]} 21. Bf4 {[%emt 0:05:19]} Rfd8 {[%emt 0:00:00]} 22. Rfe1 {[%emt 0:11:49]} Rac8 {[%emt 0:00:00]} 23. Bf1 {[%emt 0:02:11]} Qf5 {[%emt 0:00:00]} 24. Bg3 {[%emt 0:01:43]} Nc5 {[%emt 0:00:00]} 25. Qb1 {[%emt 0:01:38]} Be4 {[%emt 0:00:00]} 26. Qb5 {[%emt 0:02:15]} Bxf3 {[%emt 0:00:00]} 27. gxf3 {[%emt 0:01:38]} Bd4 {[%emt 0:00:00]} 28. Qb1 {[%emt 0:05:26]} Qxf3 {[%emt 0:00:00]} 29. Rcd1 {[%emt 0:02:33]} Qf6 {[%emt 0:00:00]} 30. Bh3 {[%emt 0:02:01]} Rd7 {[%emt 0:00:00]} 31. Qb5 {[%emt 0:06:00]} Rcd8 {[%emt 0:00:00]} 32. Bg2 {[%emt 0:01:56]} Rxd6 {[%emt 0:00:00]} 33. Bxd6 {[%emt 0:02:49]} Bxf2+ {[%emt 0:00:00]} 34. Kh1 {[%emt 0:00:11]} Bxe1 {[%emt 0:00:00]} 35. Be5 {[%emt 0:02:14]} Rxd1 {[%emt 0:00:00]} 36. Qe8+ {[%emt 0:00:35]} Kh7 {[%emt 0:00:00]} 37. Bxf6 {[%emt 0:00:35]} Bc3+ {[%emt 0:00:00]} 38. Bf1 {[%emt 0:00:12]} Rxf1+ {[%emt 0:00:00]} 39. Kg2 {[%emt 0:00:09]} Rxf6 {[%emt 0:00:00]} 40. Qa8 {[%emt 0:00:26]} a5 {[%emt 0:00:00]} 41. Qc6 {[%emt 0:00:22]} e5 {[%emt 0:00:00]} 42. Qb5 {[%emt 0:00:10]} e4 {[%emt 0:00:00]} 43. Qb1 {[%emt 0:00:11]} g6 {[%emt 0:00:00]} 44. a4 {[%emt 0:00:10]} e3 {[%emt 0:00:00]} 45. h4 {[%emt 0:00:08]} e2 {[%emt 0:00:00]} 0-1

[Event "Marshall CC U2400 October 2024"]
[Site "New York"]
[Date "2024.10.19"]
[Round "1.3"]
[White "Das, Aditeya"]
[Black "Mehta, Naman"]
[Result "1-0"]
[ECO "C54"]
[WhiteElo "1961"]
[BlackElo "1677"]
[Annotator "RC"]
[PlyCount "111"]
[EventDate "2024.04.20"]
[EventType "swiss"]
[EventCountry "USA"]
[SourceTitle "playchess.com"]
[Source "ChessBase"]
[SourceQuality "1"]
[TimeControl "5400+30"]

1. e4 {[%emt 0:14:00]} e5 {[%emt 0:00:31]} 2. Nf3 {[%emt 0:00:13]} Nc6 {[%emt 0:00:12]} 3. Bc4 {[%emt 0:00:05]} Bc5 {[%emt 0:00:07]} 4. c3 {[%emt 0:00:08]} Nf6 {[%emt 0:00:08]} 5. d3 {[%emt 0:00:06]} h6 {[%emt 0:00:35]} 6. O-O {[%emt 0:00:13]} d6 {[%emt 0:00:39]} 7. a4 {[%emt 0:00:52]} a6 {[%emt 0:00:41]} 8. Be3 {[%emt 0:01:05]} Bxe3 {[%emt 0:00:56]} 9. fxe3 {[%emt 0:00:02]} O-O {[%emt 0:00:50]} 10. Nbd2 {[%emt 0:02:11]} Qe7 {[%emt 0:06:13]} 11. d4 {[%emt 0:01:43]} Nb8 {[%emt 0:07:16]} 12. Qe1 {[%emt 0:01:54]} c6 {[%emt 0:03:55]} 13. Bd3 {[%emt 0:02:16]} Re8 {[%emt 0:04:59]} 14. h3 {[%emt 0:01:25]} Nbd7 {[%emt 0:01:19]} 15. Nh4 {[%emt 0:05:30]} Nf8 {[%emt 0:02:23]} 16. Qg3 {[%emt 0:00:43]} N8h7 {[%emt 0:06:48]} 17. Nf5 {[%emt 0:09:13]} Bxf5 {[%emt 0:00:30]} 18. Rxf5 {[%emt 0:00:03]} Rad8 {[%emt 0:04:33]} 19. a5 {[%emt 0:02:07]} Qe6 {[%emt 0:05:13]} 20. Raf1 {[%emt 0:05:04]} Kh8 {[%emt 0:03:19]} 21. Bc4 {[%emt 0:09:18]} Qe7 {[%emt 0:02:00]} 22. Qh4 {[%emt 0:10:56]} Kg8 {[%emt 0:12:30]} 23. Bd3 {[%emt 0:02:57]} Rd7 {[%emt 0:01:42]} 24. Qg3 {[%emt 0:02:22]} Kh8 {[%emt 0:07:26]} 25. h4 {[%emt 0:00:39]} Nf8 {[%emt 0:01:36]} 26. Bc2 {[%emt 0:00:49]} Rc7 {[%emt 0:04:34]} 27. Nc4 {[%emt 0:01:49]} N8d7 {[%emt 0:02:09]} 28. b3 {[%emt 0:00:52]} Qe6 {[%emt 0:03:16]} 29. h5 {[%emt 0:02:03]} Kh7 {[%emt 0:02:39]} 30. Qh4 {[%emt 0:01:48]} Rf8 {[%emt 0:02:52]} 31. R1f3 {[%emt 0:03:51]} Kh8 {[%emt 0:00:41]} 32. Qf2 {[%emt 0:04:46]} Rcc8 {[%emt 0:01:56]} 33. Qf1 {[%emt 0:01:31]} Rce8 {[%emt 0:00:46]} 34. Nd2 {[%emt 0:02:02]} d5 {[%emt 0:00:50]} 35. exd5 {[%emt 0:01:42]} Qxd5 {[%emt 0:00:59]} 36. Nc4 {[%emt 0:00:18]} Kg8 {[%emt 0:04:36]} 37. e4 {[%emt 0:01:26]} Qe6 {[%emt 0:01:07]} 38. Nxe5 {[%emt 0:00:45]} Nxe5 {[%emt 0:01:37]} 39. Rxe5 {[%emt 0:00:08]} Qd7 {[%emt 0:00:23]} 40. Rxe8 {[%emt 0:00:57]} Rxe8 {[%emt 0:00:31]} 41. e5 {[%emt 0:00:15]} Nd5 {[%emt 0:01:21]} 42. Qd3 {[%emt 0:01:05]} Kf8 {[%emt 0:01:17]} 43. Qd2 {[%emt 0:01:44]} Kg8 {[%emt 0:02:11]} 44. Rg3 {[%emt 0:00:38]} Qe6 {[%emt 0:00:39]} 45. Qd3 {[%emt 0:00:21]} f5 {[%emt 0:00:28]} 46. Qxf5 {[%emt 0:01:23]} Qxf5 {[%emt 0:00:05]} 47. Bxf5 {[%emt 0:00:16]} Nf4 {[%emt 0:00:27]} 48. Rf3 {[%emt 0:00:18]} Ne2+ {[%emt 0:00:25]} 49. Kf2 {[%emt 0:00:34]} Nc1 {[%emt 0:00:13]} 50. b4 {[%emt 0:00:18]} Nb3 {[%emt 0:00:44]} 51. Ke2 {[%emt 0:04:14]} b6 {[%emt 0:01:26]} 52. Bg6 {[%emt 0:00:42]} Re7 {[%emt 0:00:18]} 53. axb6 {[%emt 0:00:09]} a5 {[%emt 0:00:24]} 54. Bf7+ {[%emt 0:00:37]} Kf8 {[%emt 0:01:42]} 55. Bxb3+ {[%emt 0:00:13]} Ke8 {[%emt 0:00:07]} 56. bxa5 {[%emt 0:00:07]} 1-0

[Event "Marshall CC U2400 October 2024"]
[Site "New York"]
[Date "2024.10.19"]
[Round "1.4"]
[White "Kashyap, Manish B"]
[Black "Knowles, Chase"]
[Result "0-1"]
[ECO "B09"]
[WhiteElo "1650"]
[BlackElo "1966"]
[Annotator "RC"]
[PlyCount "120"]
[EventDate "2024.04.20"]
[EventType "swiss"]
[EventCountry "USA"]
[SourceTitle "playchess.com"]
[Source "ChessBase"]
[SourceQuality "1"]
[TimeControl "5400+30"]

1. e4 {[%emt 0:00:02]} g6 {[%emt 0:00:07]} 2. d4 {[%emt 0:00:06]} Bg7 {[%emt 0:00:04]} 3. f4 {[%emt 0:00:16]} d6 {[%emt 0:00:06]} 4. Nf3 {[%emt 0:00:11]} Nf6 {[%emt 0:00:19]} 5. Nc3 {[%emt 0:00:42]} c5 {[%emt 0:02:11]} 6. dxc5 {[%emt 0:04:21]} Qa5 {[%emt 0:01:27]} 7. Bb5+ {[%emt 0:15:39]} Bd7 {[%emt 0:03:06]} 8. Bxd7+ {[%emt 0:00:57]} Nbxd7 {[%emt 0:01:31]} 9. O-O {[%emt 0:03:58]} Qxc5+ {[%emt 0:01:25]} 10. Kh1 {[%emt 0:00:32]} Ng4 {[%emt 0:01:43]} 11. Qe2 {[%emt 0:01:30]} Rc8 {[%emt 0:14:46]} 12. h3 {[%emt 0:04:47]} Bxc3 {[%emt 0:07:34]} 13. bxc3 {[%emt 0:01:31]} Ngf6 {[%emt 0:00:34]} 14. e5 {[%emt 0:05:37]} Nh5 {[%emt 0:03:38]} 15. Kh2 {[%emt 0:00:58]} dxe5 {[%emt 0:02:54]} 16. fxe5 {[%emt 0:02:54]} Qxc3 {[%emt 0:01:31]} 17. e6 {[%emt 0:06:59]} Qc7+ {[%emt 0:03:31]} 18. Kg1 {[%emt 0:01:15]} Qb6+ {[%emt 0:00:43]} 19. Be3 {[%emt 0:02:03]} Qxe6 {[%emt 0:00:50]} 20. Ng5 {[%emt 0:01:36]} Qc4 {[%emt 0:01:54]} 21. Qxc4 {[%emt 0:01:59]} Rxc4 {[%emt 0:00:05]} 22. Nxf7 {[%emt 0:00:07]} Rf8 {[%emt 0:01:32]} 23. Rad1 {[%emt 0:03:27]} Rxc2 {[%emt 0:05:45]} 24. Bxa7 {[%emt 0:08:59]} Rxa2 {[%emt 0:02:28]} 25. Rc1 {[%emt 0:06:40]} e6 {[%emt 0:07:46]} 26. Rc8+ {[%emt 0:09:05]} Ke7 {[%emt 0:00:14]} 27. Bc5+ {[%emt 0:00:35]} Nxc5 {[%emt 0:00:40]} 28. Rxc5 {[%emt 0:00:07]} Rd2 {[%emt 0:03:46]} 29. Rc7+ {[%emt 0:10:09]} Rd7 {[%emt 0:00:44]} 30. Rxd7+ {[%emt 0:00:18]} Kxd7 {[%emt 0:00:07]} 31. Ne5+ {[%emt 0:00:12]} Ke7 {[%emt 0:00:59]} 32. Rb1 {[%emt 0:00:24]} Kd6 {[%emt 0:00:48]} 33. Nc4+ {[%emt 0:00:30]} Kc7 {[%emt 0:32:12]} 34. Na5 {[%emt 0:01:03]} Rb8 {[%emt 0:00:00]} 35. Rf1 {[%emt 0:00:46]} b6 {[%emt 0:00:00]} 36. Rf7+ {[%emt 0:01:07]} Kd6 {[%emt 0:00:00]} 37. Nb3 {[%emt 0:00:15]} b5 {[%emt 0:00:00]} 38. Kf2 {[%emt 0:01:05]} Rc8 {[%emt 0:00:00]} 39. Nd4 {[%emt 0:01:02]} b4 {[%emt 0:00:00]} 40. g4 {[%emt 0:00:57]} e5 {[%emt 0:00:00]} 41. Ne2 {[%emt 0:01:41]} Nf4 {[%emt 0:00:00]} 42. Nxf4 {[%emt 0:02:09]} exf4 {[%emt 0:00:00]} 43. Rb7 {[%emt 0:01:22]} Kc5 {[%emt 0:00:00]} 44. h4 {[%emt 0:00:45]} h6 {[%emt 0:00:00]} 45. g5 {[%emt 0:00:46]} hxg5 {[%emt 0:00:00]} 46. hxg5 {[%emt 0:00:10]} Rf8 {[%emt 0:00:00]} 47. Kf3 {[%emt 0:00:17]} Rf5 {[%emt 0:00:00]} 48. Ra7 {[%emt 0:00:51]} Kc4 {[%emt 0:00:00]} 49. Rc7+ {[%emt 0:00:24]} Kb3 {[%emt 0:00:00]} 50. Rb7 {[%emt 0:00:12]} Kc3 {[%emt 0:00:00]} 51. Rc7+ {[%emt 0:00:12]} Kb2 {[%emt 0:00:00]} 52. Rc6 {[%emt 0:00:57]} Rxg5 {[%emt 0:00:00]} 53. Kxf4 {[%emt 0:00:04]} Rg1 {[%emt 0:00:00]} 54. Rb6 {[%emt 0:00:11]} b3 {[%emt 0:00:00]} 55. Kf3 {[%emt 0:00:02]} Kc2 {[%emt 0:00:00]} 56. Rc6+ {[%emt 0:00:15]} Kb1 {[%emt 0:00:00]} 57. Ke2 {[%emt 0:00:47]} Rg2+ {[%emt 0:00:00]} 58. Kd3 {[%emt 0:00:13]} b2 {[%emt 0:00:00]} 59. Rb6 {[%emt 0:00:56]} Rg4 {[%emt 0:00:00]} 60. Kc3 {[%emt 0:00:33]} Kc1 {[%emt 0:00:56]} 0-1

[Event "Marshall CC U2400 October 2024"]
[Site "New York"]
[Date "2024.10.19"]
[Round "1.5"]
[White "Gutnik, Aleksandr"]
[Black "Singh, Ian Avery"]
[Result "1-0"]
[ECO "B51"]
[WhiteElo "1944"]
[BlackElo "1715"]
[Annotator "RC"]
[PlyCount "99"]
[EventDate "2024.04.20"]
[EventType "swiss"]
[EventCountry "USA"]
[SourceTitle "playchess.com"]
[Source "ChessBase"]
[SourceQuality "1"]
[TimeControl "5400+30"]

1. e4 {[%emt 0:00:04]} c5 {[%emt 0:00:03]} 2. Nf3 {[%emt 0:00:16]} d6 {[%emt 0:00:01]} 3. Bb5+ {[%emt 0:00:24]} Nd7 {[%emt 0:00:06]} 4. O-O {[%emt 0:00:19]} a6 {[%emt 0:00:03]} 5. Be2 {[%emt 0:00:25]} Ngf6 {[%emt 0:00:20]} 6. d3 {[%emt 0:00:37]} e6 {[%emt 0:00:46]} 7. Re1 {[%emt 0:01:27]} Be7 {[%emt 0:00:47]} 8. Bf1 {[%emt 0:00:48]} b5 {[%emt 0:01:21]} 9. a4 {[%emt 0:01:23]} Bb7 {[%emt 0:01:06]} 10. Nbd2 {[%emt 0:05:49]} O-O {[%emt 0:02:51]} 11. b3 {[%emt 0:05:16]} Qc7 {[%emt 0:02:19]} 12. Bb2 {[%emt 0:00:44]} Ng4 {[%emt 0:04:03]} 13. h3 {[%emt 0:03:25]} Nge5 {[%emt 0:00:06]} 14. axb5 {[%emt 0:06:09]} axb5 {[%emt 0:00:18]} 15. Qe2 {[%emt 0:05:13]} Bf6 {[%emt 0:07:10]} 16. Nxe5 {[%emt 0:07:25]} Nxe5 {[%emt 0:00:24]} 17. c3 {[%emt 0:01:30]} c4 {[%emt 0:05:08]} 18. dxc4 {[%emt 0:00:56]} bxc4 {[%emt 0:01:07]} 19. Nxc4 {[%emt 0:00:47]} Nxc4 {[%emt 0:03:45]} 20. Qxc4 {[%emt 0:00:17]} Qb6 {[%emt 0:02:39]} 21. Qb5 {[%emt 0:04:55]} Qxb5 {[%emt 0:00:59]} 22. Bxb5 {[%emt 0:00:11]} Rfc8 {[%emt 0:00:10]} 23. Rxa8 {[%emt 0:03:35]} Rxa8 {[%emt 0:00:42]} 24. f3 {[%emt 0:08:01]} Ra2 {[%emt 0:03:21]} 25. Re2 {[%emt 0:00:15]} Ba6 {[%emt 0:01:29]} 26. Bxa6 {[%emt 0:00:42]} Rxa6 {[%emt 0:00:15]} 27. Kf2 {[%emt 0:01:01]} Rb6 {[%emt 0:01:07]} 28. b4 {[%emt 0:00:16]} Rc6 {[%emt 0:00:58]} 29. Rc2 {[%emt 0:03:23]} Kf8 {[%emt 0:02:16]} 30. Ke2 {[%emt 0:00:26]} Ke7 {[%emt 0:00:29]} 31. Kd3 {[%emt 0:01:09]} Kd7 {[%emt 0:00:16]} 32. Bc1 {[%emt 0:03:33]} Ra6 {[%emt 0:03:41]} 33. Kc4 {[%emt 0:05:09]} Rc6+ {[%emt 0:00:24]} 34. Kb3 {[%emt 0:00:12]} Kc7 {[%emt 0:01:05]} 35. b5 {[%emt 0:00:51]} Rc5 {[%emt 0:00:26]} 36. c4 {[%emt 0:00:51]} Kb7 {[%emt 0:00:03]} 37. Ba3 {[%emt 0:00:21]} Bd4 {[%emt 0:00:51]} 38. Rd2 {[%emt 0:00:56]} e5 {[%emt 0:00:23]} 39. Bxc5 {[%emt 0:01:48]} Bxc5 {[%emt 0:00:12]} 40. Ra2 {[%emt 0:00:29]} Bd4 {[%emt 0:00:07]} 41. g3 {[%emt 0:01:58]} Bc5 {[%emt 0:00:55]} 42. f4 {[%emt 0:00:43]} Bd4 {[%emt 0:00:07]} 43. Rd2 {[%emt 0:00:49]} Kb6 {[%emt 0:00:11]} 44. fxe5 {[%emt 0:02:23]} dxe5 {[%emt 0:00:02]} 45. Rxd4 {[%emt 0:00:35]} exd4 {[%emt 0:00:07]} 46. Kb4 {[%emt 0:00:16]} g6 {[%emt 0:00:15]} 47. c5+ {[%emt 0:00:11]} Kc7 {[%emt 0:00:03]} 48. Kc4 {[%emt 0:00:10]} f5 {[%emt 0:00:03]} 49. exf5 {[%emt 0:00:11]} gxf5 {[%emt 0:00:01]} 50. Kxd4 {[%emt 0:00:12]} 1-0

[Event "Marshall CC U2400 October 2024"]
[Site "New York"]
[Date "2024.10.19"]
[Round "1.6"]
[White "Xiang, Grayson"]
[Black "Larsen, Jeremy"]
[Result "0-1"]
[ECO "B08"]
[WhiteElo "1625"]
[BlackElo "1933"]
[Annotator "RC"]
[PlyCount "94"]
[EventDate "2024.04.20"]
[EventType "swiss"]
[EventCountry "USA"]
[SourceTitle "playchess.com"]
[Source "ChessBase"]
[SourceQuality "1"]
[TimeControl "5400+30"]

1. e4 {[%emt 0:00:02]} d6 {[%emt 0:00:04]} 2. d4 {[%emt 0:00:06]} Nf6 {[%emt 0:00:03]} 3. Nc3 {[%emt 0:00:06]} g6 {[%emt 0:00:04]} 4. Nf3 {[%emt 0:00:10]} Bg7 {[%emt 0:00:05]} 5. Be2 {[%emt 0:00:16]} O-O {[%emt 0:00:09]} 6. O-O {[%emt 0:00:05]} Bg4 {[%emt 0:00:16]} 7. h3 {[%emt 0:00:08]} Bxf3 {[%emt 0:00:13]} 8. Bxf3 {[%emt 0:00:07]} Nc6 {[%emt 0:00:06]} 9. Be3 {[%emt 0:00:19]} e5 {[%emt 0:02:24]} 10. d5 {[%emt 0:00:38]} Ne7 {[%emt 0:02:00]} 11. Be2 {[%emt 0:00:16]} c6 {[%emt 0:07:00]} 12. Qd2 {[%emt 0:02:44]} cxd5 {[%emt 0:02:26]} 13. exd5 {[%emt 0:00:15]} Qa5 {[%emt 0:02:12]} 14. Rad1 {[%emt 0:00:23]} Nf5 {[%emt 0:02:31]} 15. Bg5 {[%emt 0:00:53]} Nd4 {[%emt 0:02:27]} 16. Bxf6 {[%emt 0:01:50]} Bxf6 {[%emt 0:00:24]} 17. Ne4 {[%emt 0:01:48]} Nxe2+ {[%emt 0:10:03]} 18. Qxe2 {[%emt 0:00:10]} Be7 {[%emt 0:00:07]} 19. c4 {[%emt 0:00:58]} f5 {[%emt 0:01:05]} 20. Nc3 {[%emt 0:00:08]} Rac8 {[%emt 0:01:21]} 21. a3 {[%emt 0:04:08]} Qc5 {[%emt 0:10:11]} 22. b3 {[%emt 0:01:07]} Qxa3 {[%emt 0:00:10]} 23. Qc2 {[%emt 0:00:26]} a6 {[%emt 0:02:30]} 24. Ra1 {[%emt 0:00:20]} Qb4 {[%emt 0:01:12]} 25. Ra4 {[%emt 0:01:29]} Qb6 {[%emt 0:00:26]} 26. Na2 {[%emt 0:01:13]} Bf6 {[%emt 0:01:44]} 27. Rb4 {[%emt 0:00:17]} Qc7 {[%emt 0:02:31]} 28. Qd2 {[%emt 0:03:28]} Rf7 {[%emt 0:02:18]} 29. Rc1 {[%emt 0:03:17]} Qa5 {[%emt 0:03:39]} 30. Qe2 {[%emt 0:02:50]} b5 {[%emt 0:04:16]} 31. Kh2 {[%emt 0:03:56]} e4 {[%emt 0:01:58]} 32. g3 {[%emt 0:00:21]} Rc5 {[%emt 0:03:50]} 33. Qd2 {[%emt 0:07:56]} Be5 {[%emt 0:00:50]} 34. Kg2 {[%emt 0:00:53]} f4 {[%emt 0:02:36]} 35. cxb5 {[%emt 0:05:40]} Rxb5 {[%emt 0:03:15]} 36. Rc2 {[%emt 0:01:05]} e3 {[%emt 0:04:27]} 37. Qe1 {[%emt 0:01:06]} f3+ {[%emt 0:05:35]} 38. Kh2 {[%emt 0:01:15]} e2 {[%emt 0:00:42]} 39. Qd2 {[%emt 0:01:29]} Kg7 {[%emt 0:00:56]} 40. h4 {[%emt 0:04:18]} Rxb4 {[%emt 0:06:05]} 41. Nxb4 {[%emt 0:00:18]} Rb7 {[%emt 0:00:57]} 42. Rc4 {[%emt 0:00:03]} Qa1 {[%emt 0:01:00]} 43. Rc1 {[%emt 0:00:19]} Qd4 {[%emt 0:00:24]} 44. Qe1 {[%emt 0:00:30]} Qxh4+ {[%emt 0:00:19]} 45. Kg1 {[%emt 0:00:05]} Qh3 {[%emt 0:00:09]} 46. Rc7+ {[%emt 0:00:19]} Rxc7 {[%emt 0:00:11]} 47. Qf1 {[%emt 0:00:15]} exf1=R# {[%emt 0:00:48]} 0-1

[Event "Marshall CC U2400 October 2024"]
[Site "New York"]
[Date "2024.10.19"]
[Round "1.7"]
[White "Berg, George"]
[Black "Han, Leqi"]
[Result "1-0"]
[ECO "B43"]
[WhiteElo "1962"]
[BlackElo "1681"]
[Annotator "RC"]
[PlyCount "49"]
[EventDate "2024.04.20"]
[EventType "swiss"]
[EventCountry "USA"]
[SourceTitle "playchess.com"]
[Source "ChessBase"]
[SourceQuality "1"]
[TimeControl "5400+30"]

1. e4 {[%emt 0:00:03]} c5 {[%emt 0:00:59]} 2. Nf3 {[%emt 0:00:06]} e6 {[%emt 0:00:12]} 3. d4 {[%emt 0:00:03]} cxd4 {[%emt 0:00:14]} 4. Nxd4 {[%emt 0:00:05]} a6 {[%emt 0:00:55]} 5. Nc3 {[%emt 0:00:09]} Qc7 {[%emt 0:00:12]} 6. g3 {[%emt 0:00:06]} b5 {[%emt 0:01:49]} 7. Bg2 {[%emt 0:00:06]} Bb7 {[%emt 0:00:09]} 8. O-O {[%emt 0:00:15]} d6 {[%emt 0:03:43]} 9. Re1 {[%emt 0:00:57]} Nf6 {[%emt 0:02:21]} 10. a4 {[%emt 0:01:59]} bxa4 {[%emt 0:03:26]} 11. Nd5 {[%emt 0:00:35]} Nxd5 {[%emt 0:09:19]} 12. exd5 {[%emt 0:00:05]} e5 {[%emt 0:00:19]} 13. f4 {[%emt 0:03:59]} Nd7 {[%emt 0:04:25]} 14. Nc6 {[%emt 0:01:38]} Bxc6 {[%emt 0:03:14]} 15. dxc6 {[%emt 0:00:08]} Nc5 {[%emt 0:01:20]} 16. Qd5 {[%emt 0:04:42]} O-O-O {[%emt 0:03:43]} 17. Be3 {[%emt 0:02:03]} Be7 {[%emt 0:04:10]} 18. Rxa4 {[%emt 0:07:25]} g6 {[%emt 0:19:16]} 19. Bxc5 {[%emt 0:09:04]} dxc5 {[%emt 0:00:10]} 20. Bh3+ {[%emt 0:00:02]} f5 {[%emt 0:01:09]} 21. Qe6+ {[%emt 0:00:07]} Kb8 {[%emt 0:00:48]} 22. Qb3+ {[%emt 0:00:06]} Ka7 {[%emt 0:01:56]} 23. Rxa6+ {[%emt 0:00:06]} Kxa6 {[%emt 0:00:13]} 24. Ra1+ {[%emt 0:00:06]} Qa5 {[%emt 0:00:05]} 25. Qb7# {[%emt 0:00:05]} 1-0